bitfinex-derivatives/quotes_ETHF0:USTF0_20250712
["timestamp","ask_amount","ask_price","bid_price","bid_amount"]
[1752328112275,3.71848,2935.9,2935.8,9.73758952]
[1752328112470,3.71848,2935.9,2935.8,9.74732554]
[1752328113274,3.71848,2935.9,2935.8,10.42832554]
[1752328113470,0.9816,2936.2,2935.8,9.74732554]
[1752328113671,6.2453,2936.4,2936.1,6.27665027]
[1752328113870,3.71841,2936.2,2936.1,5.29765027]
[1752328114178,4.70001,2936.2,2936.1,2.18185027]
[1752328114479,0.68096,2936.0,2935.9,6.53952554]
[1752328114673,4.70006,2936.0,2935.9,2.44472554]
[1752328115175,0.68098,2935.9,2935.8,6.63152554]
[1752328115371,4.70008,2935.9,2935.8,6.63152554]
[1752328115576,4.70008,2935.9,2935.8,3.2078]
[1752328115869,4.70008,2935.9,2935.7,2.44472554]
[1752328115870,4.7001,2935.8,2935.7,2.44472554]
[1752328116775,7.9079,2935.8,2935.7,2.44472554]
[1752328116975,4.70013,2935.7,2935.6,2.44545125]
[1752328117173,0.68105,2935.6,2935.5,2.44545125]
[1752328117369,3.71857,2935.5,2935.4,0.979]
[1752328117571,4.70017,2935.5,2935.4,0.979]
[1752328117972,4.7002,2935.4,2935.3,2.18185027]
[1752328118271,4.70022,2935.3,2935.2,6.256727]
[1752328118472,4.70022,2935.3,2935.2,3.2078]
[1752328118671,0.68119,2935.0,2934.9,6.256727]
[1752328118869,4.70029,2935.0,2934.9,3.2078]
[1752328119274,4.70029,2935.0,2934.9,4.1868]
[1752328119869,4.70029,2935.0,2934.9,3.2078]
[1752328120278,0.68126,2934.7,2934.6,10.351527]
[1752328120672,0.68126,2934.7,2934.6,7.3026]
[1752328121073,4.70036,2934.7,2934.6,3.2078]
[1752328121781,4.7004,2934.5,2934.4,2.44450152]
[1752328121980,3.71894,2933.9,2933.8,1.97900706]
[1752328122281,0.68154,2933.5,2933.4,4.37309558]
[1752328122578,4.70064,2933.5,2933.4,0.12541]
[1752328122984,3.71904,2933.5,2933.4,1.10441]
[1752328123282,0.68154,2933.5,2933.4,4.22021]
[1752328123579,3.2438,2933.8,2933.6,3.9521]
[1752328123777,0.68145,2933.9,2933.7,4.69539011]
[1752328123977,28.5288,2934.3,2933.7,4.01390011]
[1752328124182,0.68144,2933.9,2933.8,0.979]
[1752328124381,3.2438,2934.2,2934.0,2.9731]
[1752328124685,4.90677,2934.2,2934.1,3.16085027]
[1752328124880,3.2078,2935.0,2934.1,2.18185027]
[1752328125181,0.68132,2934.5,2934.3,4.63344]
[1752328125376,0.68129,2934.6,2934.5,3.8799]
[1752328125777,4.92509,2934.6,2934.5,0.9068]
[1752328125976,4.2438,2934.4,2934.2,2.9731]
[1752328126178,0.6814,2934.1,2934.0,1.83204984]
[1752328126379,0.68142,2934.0,2933.9,1.83204984]
[1752328126580,4.92524,2933.9,2933.8,1.83204984]
[1752328126782,4.92529,2933.7,2933.6,1.83204984]
[1752328127185,1.70358,2934.0,2933.4,1.03221]
[1752328127186,4.92531,2933.6,2933.5,1.83204984]
[1752328127485,4.92531,2933.6,2933.5,3.08865027]
[1752328127784,0.68151,2933.6,2933.5,6.06175027]
[1752328127983,0.68151,2933.6,2933.5,7.89380011]
[1752328128385,0.68151,2933.6,2933.5,6.06175027]
[1752328128782,0.68151,2933.6,2933.5,3.8799]
[1752328128982,3.2438,2933.8,2933.5,3.8799]
[1752328129286,3.92527,2933.8,2933.7,2.12455583]
[1752328129486,3.92527,2933.8,2933.7,0.9068]
[1752328129778,4.2438,2934.0,2933.6,3.67715847]
[1752328129983,0.68147,2933.8,2933.7,3.8799]
[1752328130284,3.92527,2933.8,2933.7,3.8799]
[1752328130883,4.92527,2933.8,2933.7,3.8799]
[1752328131487,4.92527,2933.8,2933.7,0.9068]
[1752328132386,3.92534,2933.5,2933.4,1.03221]
[1752328132589,3.92534,2933.5,2933.3,3.2078]
[1752328132590,5.94771,2933.4,2932.8,1.83204984]
[1752328132793,0.68168,2932.9,2932.8,3.8799]
[1752328133290,4.92548,2932.9,2932.8,0.9068]
[1752328134080,3.92548,2932.9,2932.8,3.8799]
[1752328134686,0.68163,2933.1,2932.9,2.9731]
[1752328134887,0.68161,2933.2,2933.0,3.8799]
[1752328135089,3.2078,2933.4,2932.8,2.45940264]
[1752328135389,0.68154,2933.5,2933.4,2.9731]
[1752328135583,3.2438,2933.6,2933.4,2.9731]
[1752328135786,0.68154,2933.5,2933.4,2.9731]
[1752328135985,0.68154,2933.5,2933.4,3.8799]
[1752328136385,3.2438,2933.3,2933.1,0.9068]
[1752328136587,3.92541,2933.2,2933.1,3.8799]
[1752328137384,3.92541,2933.2,2933.1,0.9068]
[1752328137591,0.68163,2933.1,2933.0,3.2078]
[1752328137893,4.92543,2933.1,2933.0,3.2078]
[1752328138389,1.0,2933.1,2932.8,3.65479]
[1752328138701,3.92547,2933.0,2932.9,0.9068]
[1752328138902,0.68154,2933.5,2933.1,0.9068]
[1752328139098,0.68156,2933.4,2933.3,0.9068]
[1752328139302,3.92536,2933.4,2933.3,0.9068]
[1752328139602,0.68151,2933.7,2933.5,0.68154]
[1752328139801,4.2078,2933.6,2932.9,3.8799]
[1752328139996,0.68157,2933.4,2932.8,0.9068]
[1752328140197,3.2078,2933.6,2933.0,2.45940264]
[1752328140400,3.2078,2933.3,2932.9,0.9068]
[1752328140602,1.0,2933.5,2932.8,2.9731]
[1752328140603,3.2438,2933.2,2932.8,0.6817]
[1752328140901,4.2438,2933.4,2933.2,0.6816]
[1752328141097,3.92536,2933.4,2933.3,3.8799]
[1752328141507,3.2078,2933.6,2933.3,3.8799]
[1752328141796,3.2078,2933.6,2932.9,4.91197]
[1752328141797,0.68154,2933.5,2933.4,2.45940264]
[1752328142396,0.68154,2933.5,2933.4,3.8799]
[1752328143206,0.68161,2933.2,2933.1,3.8799]
[1752328144202,4.2078,2933.6,2933.3,1.58836]
[1752328144406,7.4516,2933.6,2933.4,2.9731]
[1752328144608,8.13311,2933.6,2933.5,0.9068]
[1752328145108,7.13311,2933.6,2933.5,3.8799]
[1752328145606,8.13311,2933.6,2933.5,3.8799]
[1752328145908,7.13311,2933.6,2933.5,3.8799]
[1752328146301,8.13311,2933.6,2933.5,3.8799]
[1752328146802,0.68158,2933.3,2933.2,3.8799]
[1752328147001,0.68165,2933.0,2932.9,6.86257]
[1752328147197,0.68165,2933.0,2932.9,2.9731]
[1752328147402,0.68165,2933.0,2932.9,3.65478]
[1752328147603,4.2438,2933.2,2932.9,3.8799]
[1752328147805,0.68165,2933.1,2933.0,4.56155]
[1752328148006,0.68165,2933.1,2933.0,3.8799]
[1752328148207,0.68165,2933.1,2933.0,4.56155]
[1752328148700,0.68158,2933.4,2932.9,2.45940264]
[1752328148901,0.68154,2933.5,2933.1,0.68163]
[1752328149106,0.68162,2933.2,2933.1,0.68163]
[1752328149307,0.68162,2933.2,2933.1,4.56153]
[1752328149510,0.6816,2933.3,2933.2,3.8799]
[1752328150208,0.6816,2933.3,2933.2,4.56151]
[1752328150510,8.15541,2933.6,2933.2,4.56151]
[1752328150511,0.68158,2933.4,2933.3,3.8799]
[1752328151008,0.68158,2933.4,2933.3,4.56148]
[1752328151906,7.4516,2933.6,2933.3,3.8799]
[1752328152207,0.68156,2933.4,2933.3,3.8799]
[1752328153103,4.92536,2933.4,2933.3,3.8799]
[1752328153805,3.92536,2933.4,2933.3,3.8799]
[1752328154109,0.68156,2933.4,2933.3,4.56148]
[1752328154410,0.68156,2933.4,2933.3,3.8799]
[1752328155208,0.68156,2933.4,2933.3,4.56148]
[1752328155405,3.2078,2933.9,2933.4,3.8844]
[1752328155607,6.88384,2933.9,2933.8,6.07080295]
[1752328156411,4.63911,2933.6,2933.5,2.74824984]
[1752328156602,4.63911,2933.6,2933.5,3.8844]
[1752328157205,7.84691,2933.6,2933.5,1.83630051]
[1752328157512,4.63911,2933.6,2933.5,0.9162]
[1752328157808,4.63911,2933.6,2933.5,2.75250051]
[1752328158206,4.63911,2933.6,2933.5,1.83630051]
[1752328158607,7.84691,2933.6,2933.5,1.83630051]
[1752328160406,4.63911,2933.6,2933.5,1.83630051]
[1752328160608,6.63041,2933.6,2933.5,1.83630051]
[1752328161106,6.63041,2933.6,2933.5,6.95900051]
[1752328161302,6.63041,2933.6,2933.5,6.0389]
[1752328161810,6.63044,2933.5,2933.4,1.83630051]
[1752328162007,1.9913,2933.4,2933.1,7.0922]
[1752328162206,2.67291,2933.2,2933.1,7.0922]
[1752328162407,2.67291,2933.2,2933.1,9.92833]
[1752328162607,2.67291,2933.2,2933.1,9.2467]
[1752328163006,4.9859,2933.2,2933.1,9.2467]
[1752328163209,0.68157,2933.4,2933.2,3.7523]
[1752328163409,2.67287,2933.4,2933.3,6.0389]
[1752328164012,6.2024,2933.7,2933.3,2.1545]
[1752328164213,6.2024,2934.0,2933.6,6.7204]
[1752328164412,3.43696589,2933.9,2933.8,4.34090295]
[1752328164610,3.88922,2934.0,2933.9,0.68144]
[1752328164806,8.87512,2934.0,2933.9,3.0707]
[1752328165113,8.1937,2934.0,2933.9,6.72034]
[1752328165310,8.87512,2934.0,2933.9,6.0389]
[1752328165507,8.87512,2934.0,2933.9,7.87728422]
[1752328165710,9.83812,2934.0,2933.9,1.83838422]
[1752328166012,6.63034,2933.9,2933.8,1.83838422]
[1752328167814,6.63034,2933.9,2933.8,4.90908422]
[1752328168015,1.9913,2933.9,2933.8,5.59055422]
[1752328168211,3.2078,2934.0,2933.8,8.55875422]
[1752328168417,6.63034,2933.9,2933.8,3.0707]
[1752328170517,6.63034,2933.9,2933.8,4.90744549]
[1752328171313,9.83814,2933.9,2933.8,1.83674549]
[1752328171514,6.63037,2933.8,2933.7,1.83674549]
[1752328171818,4.63911,2933.6,2933.5,1.83674549]
[1752328172018,6.63041,2933.6,2933.5,1.83674549]
[1752328172221,6.63041,2933.6,2933.5,4.90744549]
[1752328173909,6.63041,2933.6,2933.5,3.0707]
[1752328175319,6.63041,2933.6,2933.5,6.0389]
[1752328176211,5.88054,2933.9,2933.8,5.1227]
[1752328176410,3.2078,2933.9,2933.8,6.0389]
[1752328176617,3.2078,2933.9,2933.8,8.55745574]
[1752328177315,3.88924,2933.9,2933.8,6.0389]
[1752328177515,5.88054,2933.9,2933.8,6.0389]
[1752328177712,5.88054,2933.9,2933.8,6.72037]
[1752328177917,5.1991,2933.9,2933.8,6.72037]
[1752328178122,3.88924,2933.9,2933.8,6.72037]
[1752328178418,3.88924,2933.9,2933.8,6.0389]
[1752328178621,8.87514,2933.9,2933.8,6.0389]
[1752328178812,5.88054,2933.9,2933.8,8.55726194]
[1752328179017,5.88054,2933.9,2933.8,6.72037]
[1752328179220,1.9913,2933.9,2933.8,6.72037]
[1752328179419,5.88051,2934.1,2934.0,6.0389]
[1752328179824,8.87511,2934.1,2934.0,6.0389]
[1752328180322,5.88051,2934.1,2934.0,6.0389]
[1752328180523,8.87511,2934.1,2934.0,6.0389]
[1752328180725,5.66731,2934.1,2934.0,6.0389]
[1752328180926,5.66731,2934.1,2934.0,6.72032]
[1752328181423,5.66731,2934.1,2934.0,7.87585609]
[1752328182018,6.63031,2934.1,2934.0,7.87585609]
[1752328182819,6.6303,2934.1,2934.0,8.55727609]
[1752328183024,5.6673,2934.1,2934.0,7.87585609]
[1752328183218,0.963,2934.4,2934.0,8.22530295]
[1752328183528,6.56353,2934.4,2934.3,5.9751]
[1752328186430,1.9913,2934.4,2934.3,8.16150295]
[1752328186726,2.67263,2934.4,2934.3,8.16150295]
[1752328187027,2.67263,2934.4,2934.3,7.06757834]
[1752328187721,5.60053,2934.4,2934.3,7.06757834]
[1752328188115,0.68133,2934.4,2934.3,7.06757834]
[1752328188320,1.70317,2934.7,2934.6,5.9396]
[1752328188321,2.73826,2934.7,2934.6,5.9396]
[1752328188521,6.64866,2934.7,2934.6,7.77497153]
[1752328188928,6.64866,2934.7,2934.6,5.9396]
[1752328189323,6.64866,2934.7,2934.6,7.77399434]
[1752328189627,2.73826,2934.7,2934.6,7.77399434]
[1752328190517,6.64866,2934.7,2934.6,7.77399434]
[1752328192023,6.64866,2934.7,2934.6,4.86959434]
[1752328192529,3.2078,2934.9,2934.5,1.83439434]
[1752328192530,5.66618,2934.6,2934.5,1.83439434]
[1752328192826,6.64875,2934.3,2934.2,4.86959434]
[1752328193127,6.64875,2934.3,2934.2,7.77399434]
[1752328193429,5.66625,2934.3,2934.2,8.86647268]
[1752328193629,4.9849,2934.3,2934.2,9.54784268]
[1752328193822,2.057,2934.3,2934.2,7.71344834]
[1752328194125,5.66625,2934.3,2934.2,7.03207834]
[1752328194326,6.64875,2934.3,2934.2,7.03207834]
[1752328195421,6.64875,2934.3,2934.2,7.71344834]
[1752328195626,2.057,2934.3,2934.2,7.71344834]
[1752328195826,2.73835,2934.3,2934.2,7.03207834]
[1752328196026,5.66625,2934.3,2934.2,7.03207834]
[1752328196525,6.64875,2934.3,2934.2,7.03207834]
[1752328197627,6.64875,2934.3,2934.2,8.86561823]
[1752328198027,6.64875,2934.3,2934.2,1.83353989]
[1752328199423,6.64875,2934.3,2934.2,3.96363989]
[1752328199822,6.64875,2934.3,2934.2,2.1301]
[1752328200323,6.64877,2934.2,2934.1,3.96363989]
[1752328200527,6.64877,2934.2,2934.1,4.86873989]
[1752328201027,6.64877,2934.2,2934.1,9.54701823]
[1752328201325,6.64877,2934.2,2934.1,8.86561823]
[1752328201624,5.6662,2934.5,2934.4,5.9396]
[1752328201830,6.6487,2934.5,2934.4,7.03207834]
[1752328202033,2.057,2934.5,2934.4,7.71340834]
[1752328202323,2.057,2934.6,2934.5,6.6209]
[1752328202723,0.6813,2934.5,2934.4,1.83353989]
[1752328202930,4.9849,2934.5,2934.4,6.62093]
[1752328203123,2.057,2934.5,2934.4,8.45446989]
[1752328203629,2.7383,2934.5,2934.4,8.45446989]
[1752328204129,6.6487,2934.5,2934.4,7.77313989]
[1752328204327,5.66627,2934.2,2934.1,8.37150674]
[1752328204526,5.66627,2934.2,2934.1,5.9396]
[1752328204725,5.66627,2934.2,2934.1,6.621]
[1752328204726,6.64877,2934.2,2934.1,6.621]
[1752328204927,5.9674,2934.2,2934.1,6.621]
[1752328205228,5.66627,2934.2,2934.1,6.621]
[1752328205627,4.9849,2934.2,2934.1,6.621]
[1752328206226,5.66627,2934.2,2934.1,6.621]
[1752328206428,2.057,2934.2,2934.1,6.621]
[1752328206828,2.73833,2934.4,2934.3,5.9396]
[1752328207024,2.73833,2934.4,2934.3,8.86763067]
[1752328207632,6.64873,2934.4,2934.3,8.86763067]
[1752328207833,6.64873,2934.4,2934.3,1.83555233]
[1752328208230,0.6814,2934.1,2934.0,8.37150674]
[1752328208426,0.6814,2934.1,2934.0,5.46710674]
[1752328208427,6.6488,2934.1,2934.0,5.46710674]
[1752328208632,6.6488,2934.1,2934.0,4.56200674]
[1752328208834,6.6488,2934.1,2934.0,2.1301]
[1752328210332,0.68144,2933.9,2933.8,6.54480674]
[1752328210538,6.64884,2933.9,2933.8,3.0352]
[1752328211425,6.64884,2933.9,2933.8,5.9396]
[1752328211625,6.64884,2933.9,2933.8,3.0352]
[1752328212131,2.73849,2933.7,2933.6,4.56200674]
[1752328212330,5.66639,2933.7,2933.6,8.37150674]
[1752328212629,5.66639,2933.7,2933.6,5.9396]
[1752328212834,6.64889,2933.7,2933.6,5.9396]
[1752328213733,5.66639,2933.7,2933.6,5.9396]
[1752328214535,6.64889,2933.7,2933.6,5.9396]
[1752328217035,5.66639,2933.7,2933.6,6.62111]
[1752328217339,4.9849,2933.7,2933.6,6.62111]
[1752328217531,2.057,2933.7,2933.6,6.62111]
[1752328217727,4.8487,2933.9,2933.8,2.63837]
[1752328217932,0.68144,2933.9,2933.8,1.09247834]
[1752328218133,1.9347,2934.6,2934.5,5.7663]
[1752328218340,4.8487,2934.6,2934.5,8.69384169]
[1752328218637,4.8487,2934.6,2934.5,9.37514169]
[1752328219030,4.8487,2934.6,2934.5,7.54007834]
[1752328219436,5.7774,2934.6,2934.5,6.85877834]
[1752328219633,8.0565,2935.1,2935.0,5.7663]
[1752328219939,4.8487,2935.1,2935.0,7.53996834]
[1752328220739,4.8487,2935.1,2935.0,8.69346605]
[1752328221138,4.8487,2935.1,2935.0,6.85877834]
[1752328221741,4.8487,2935.1,2935.0,7.53996834]
[1752328221942,3.2078,2935.4,2935.3,1.9569]
[1752328222140,1.9347,2935.5,2935.4,5.7663]
[1752328222444,4.8487,2935.5,2935.4,6.85877834]
[1752328222941,5.52977,2935.5,2935.4,6.85877834]
[1752328223339,3.2078,2935.7,2935.6,5.7663]
[1752328223643,8.0565,2935.7,2935.6,6.85877834]
[1752328223839,8.0565,2935.7,2935.6,7.53982834]
[1752328224039,5.1425,2935.7,2935.6,7.53982834]
[1752328224234,6.1218,2936.6,2936.0,1.9569]
[1752328224440,8.9852,2936.6,2936.5,3.95557834]
[1752328224838,8.9852,2936.6,2936.5,2.8631]
[1752328225239,1.9347,2936.2,2936.1,5.7663]
[1752328225435,4.8487,2936.2,2936.1,5.7663]
[1752328225748,5.52961,2936.2,2936.1,5.7663]
[1752328226342,6.45831,2936.2,2936.1,2.8631]
[1752328227142,0.68096,2936.0,2935.9,3.2078]
[1752328227347,5.7774,2936.0,2935.9,6.0709]
[1752328227546,5.7774,2936.0,2935.9,8.9741]
[1752328227746,4.8487,2936.0,2935.9,8.9741]
[1752328228347,5.52966,2936.0,2935.9,8.9741]
[1752328229943,4.8487,2936.0,2935.9,8.9741]
[1752328230151,1.9347,2936.0,2935.9,9.65508]
[1752328230349,1.60962,2936.2,2935.9,9.65508]
[1752328230651,6.45832,2936.2,2936.1,7.94820014]
[1752328231848,6.45832,2936.2,2936.1,2.8631]
[1752328232152,6.45836,2936.0,2935.9,5.1647]
[1752328232346,6.45836,2936.0,2935.9,6.0709]
[1752328232742,6.45836,2936.0,2935.9,5.1647]
[1752328232953,6.45843,2935.7,2935.6,8.9741]
[1752328233352,6.45843,2935.7,2935.6,6.0709]
[1752328233551,6.45843,2935.7,2935.6,8.9741]
[1752328234155,5.7774,2935.7,2935.6,8.9741]
[1752328234353,5.7774,2935.7,2935.6,9.65515]
[1752328234757,1.9347,2935.7,2935.6,9.65515]
[1752328235056,5.7774,2936.0,2935.9,4.8601]
[1752328235355,5.7774,2936.0,2935.9,5.7663]
[1752328235557,5.7774,2936.0,2935.9,6.44728]
[1752328235756,0.9287,2936.5,2935.9,1.9569]
[1752328235951,6.45824,2936.5,2936.4,5.7663]
[1752328237054,6.45824,2936.5,2936.4,1.9569]
[1752328237259,6.45824,2936.5,2936.4,3.54396]
[1752328237260,5.7774,2936.5,2936.4,3.54396]
[1752328237449,5.7774,2936.5,2936.4,6.44716]
[1752328237853,6.45824,2936.5,2936.4,6.44716]
[1752328238157,6.45824,2936.5,2936.4,5.7663]
[1752328239559,5.52954,2936.5,2936.4,5.7663]
[1752328239759,6.45824,2936.5,2936.4,2.8631]
[1752328241161,6.45824,2936.5,2936.4,5.7663]
[1752328242860,99.225,2936.8,2936.7,5.7663]
[1752328242861,50.84977,2936.8,2936.7,5.7663]
[1752328243057,50.169,2936.8,2936.7,5.7663]
[1752328243357,50.169,2936.8,2936.7,6.44709]
[1752328243660,0.68075,2936.9,2936.8,5.8843]
[1752328243661,5.69185,2936.9,2936.8,5.8843]
[1752328243862,6.62055,2936.9,2936.8,5.8843]
[1752328244860,6.62055,2936.9,2936.8,6.97503507]
[1752328245052,5.9398,2936.9,2936.8,7.65580507]
[1752328245251,6.62055,2936.9,2936.8,6.97503507]
[1752328245452,6.62055,2936.9,2936.8,5.8843]
[1752328245761,6.62055,2936.9,2936.8,2.8631]
[1752328246559,5.9398,2936.9,2936.8,6.97503507]
[1752328246765,6.62055,2936.9,2936.8,6.97503507]
[1752328247358,6.62055,2936.9,2936.8,5.8843]
[1752328249366,6.62055,2936.9,2936.8,2.8631]
[1752328249869,6.83899,2936.7,2936.6,1.9807]
[1752328250357,0.68086,2936.4,2936.3,1.82137862]
[1752328250667,6.83906,2936.4,2936.3,2.9094]
[1752328251062,6.83909,2936.3,2936.2,3.80207862]
[1752328251264,6.83909,2936.3,2936.2,4.73077862]
[1752328251461,6.83909,2936.3,2936.2,1.82137862]
[1752328251662,6.83911,2936.2,2936.1,1.82137862]
[1752328251866,6.83913,2936.1,2936.0,4.73077862]
[1752328252863,6.83913,2936.1,2936.0,2.9094]
[1752328253064,6.83916,2936.0,2935.9,1.82137862]
[1752328254866,6.83916,2936.0,2935.9,3.80207862]
[1752328255068,6.83916,2936.0,2935.9,4.73077862]
[1752328255367,49.974,2936.1,2935.9,6.61158]
[1752328255671,2.76923,2936.1,2936.0,8.11322111]
[1752328256063,2.0883,2936.1,2936.0,8.79418111]
[1752328256465,2.0883,2936.1,2936.0,10.61555973]
[1752328256667,53.71631,2936.3,2936.1,0.68092]
[1752328256867,5.84561,2936.3,2936.2,5.9306]
[1752328257069,6.83911,2936.3,2936.2,5.9306]
[1752328258269,6.1582,2936.3,2936.2,5.9306]
[1752328258568,6.83909,2936.3,2936.2,5.9306]
[1752328258969,6.83909,2936.3,2936.2,2.9094]
[1752328259970,6.1582,2936.3,2936.2,2.9094]
[1752328260174,6.83909,2936.3,2936.2,5.9306]
[1752328262669,6.1582,2936.3,2936.2,5.9306]
[1752328262874,6.83909,2936.3,2936.2,5.9306]
[1752328263674,2.0883,2936.3,2936.2,5.9306]
[1752328263875,2.76919,2936.3,2936.2,7.75197862]
[1752328264174,5.84559,2936.3,2936.2,5.9306]
[1752328264374,5.84559,2936.3,2936.2,7.75197862]
[1752328264769,5.1647,2936.3,2936.2,8.43288862]
[1752328264971,5.1647,2936.3,2936.2,7.76484019]
[1752328265170,5.1647,2936.3,2936.2,5.9306]
[1752328265370,5.84559,2936.3,2936.2,5.9306]
[1752328265577,5.84559,2936.3,2936.2,6.61151]
[1752328265767,50.9485,2936.5,2936.4,0.68086]
[1752328265968,50.63585,2936.5,2936.4,2.9094]
[1752328266173,53.71225,2936.5,2936.4,7.76495736]
[1752328266673,53.0314,2936.5,2936.4,8.44581736]
[1752328266978,54.70574,2936.5,2936.4,7.76495736]
[1752328269374,53.0314,2936.5,2936.4,8.44581736]
[1752328269576,53.0314,2936.5,2936.4,6.61146]
[1752328269774,49.955,2936.5,2936.4,6.61146]
[1752328270181,49.955,2936.5,2936.4,5.9306]
[1752328270377,50.63584,2936.5,2936.4,5.9306]
[1752328271873,2.76914,2936.5,2936.4,5.9306]
[1752328272076,6.83904,2936.5,2936.4,5.9306]
[1752328272380,6.83904,2936.5,2936.4,2.9094]
[1752328272774,6.83904,2936.5,2936.4,7.02167147]
[1752328274784,5.84554,2936.5,2936.4,7.02167147]
[1752328275683,6.81724,2936.5,2936.4,7.02167147]
[1752328278276,6.81724,2936.5,2936.4,5.9306]
[1752328278676,6.81724,2936.5,2936.4,2.9094]
[1752328279182,6.81724,2936.5,2936.4,5.708]
[1752328280879,6.81724,2936.5,2936.4,2.9094]
[1752328281280,6.81724,2936.5,2936.4,5.708]
[1752328283584,6.81724,2936.5,2936.4,2.9094]
[1752328283786,6.81724,2936.5,2936.4,5.708]
[1752328284485,6.81724,2936.5,2936.4,6.38886]
[1752328284683,6.81724,2936.5,2936.4,5.708]
[1752328285687,6.81724,2936.5,2936.4,6.38886]
[1752328286084,6.81724,2936.5,2936.4,5.708]
[1752328286886,6.81724,2936.5,2936.4,2.9094]
[1752328287889,6.81724,2936.5,2936.4,4.00047147]
[1752328288192,6.81724,2936.5,2936.4,6.79907147]
[1752328289792,6.1364,2936.5,2936.4,7.47993147]
[1752328290089,6.81724,2936.5,2936.4,6.79907147]
[1752328291193,6.81724,2936.5,2936.4,1.9807]
[1752328291490,0.68089,2936.3,2936.2,5.63630482]
[1752328291800,56.10969,2936.3,2936.2,5.63630482]
[1752328292291,56.10969,2936.3,2936.2,11.40690482]
[1752328293194,51.5698,2936.3,2936.2,9.65931]
[1752328293695,1.8538,2936.3,2936.2,9.65931]
[1752328293893,50.38387,2936.4,2936.2,9.65931]
[1752328294086,50.38386,2936.4,2936.3,6.27964004]
[1752328294290,54.24286,2936.4,2936.3,9.31235004]
[1752328294487,54.24286,2936.4,2936.3,2.972]
[1752328295095,2.53469,2936.3,2936.2,5.65847857]
[1752328295394,6.39369,2936.3,2936.2,8.63047857]
[1752328296497,6.39369,2936.3,2936.2,8.9784]
[1752328296901,5.7128,2936.3,2936.2,12.10998857]
[1752328297195,6.39369,2936.3,2936.2,11.42907857]
[1752328298187,6.39369,2936.3,2936.2,8.9784]
[1752328298391,6.39369,2936.3,2936.2,3.2078]
[1752328299197,6.39369,2936.3,2936.2,6.1798]
[1752328299590,6.39369,2936.3,2936.2,3.2078]
[1752328301797,6.39369,2936.3,2936.2,5.2648]
[1752328303802,6.39369,2936.3,2936.2,6.1798]
[1752328304003,6.39369,2936.3,2936.2,7.27087147]
[1752328304193,5.7128,2936.3,2936.2,10.24157147]
[1752328304398,3.61359,2936.7,2936.6,0.915]
[1752328304592,0.68082,2936.6,2936.5,3.8189261]
[1752328304902,5.49512,2936.6,2936.5,4.7339261]
[1752328305098,6.46682,2936.6,2936.5,4.7339261]
[1752328305404,6.46682,2936.6,2936.5,7.7046261]
[1752328305701,6.46682,2936.6,2936.5,4.7339261]
[1752328306301,6.46682,2936.6,2936.5,2.897]
[1752328306496,6.46682,2936.6,2936.5,5.8677]
[1752328306697,6.46682,2936.6,2936.5,7.70463027]
[1752328307706,31.26682,2936.6,2936.5,7.70463027]
[1752328308003,31.26682,2936.6,2936.5,4.73393027]
[1752328308205,31.26682,2936.6,2936.5,1.83693027]
[1752328308807,6.45194,2936.5,2936.4,1.83693027]
[1752328309007,6.45194,2936.5,2936.4,4.75293027]
[1752328309402,6.45194,2936.5,2936.4,2.916]
[1752328309603,6.45194,2936.5,2936.4,5.8867]
[1752328310297,6.45194,2936.5,2936.4,6.97777147]
[1752328310706,6.45194,2936.5,2936.4,2.916]
[1752328311710,2.64199,2936.3,2936.2,10.18557147]
[1752328311908,6.45199,2936.3,2936.2,10.18557147]
[1752328312710,6.45199,2936.3,2936.2,12.63625004]
[1752328313004,6.45199,2936.3,2936.2,6.1238]
[1752328313909,6.45199,2936.3,2936.2,10.18557147]
[1752328314806,6.45199,2936.3,2936.2,12.63625004]
[1752328315611,31.22399,2936.3,2936.2,12.63625004]
[1752328317308,31.22399,2936.3,2936.2,9.42845004]
[1752328317503,31.22399,2936.3,2936.2,6.45775004]
[1752328317708,6.45199,2936.3,2936.2,4.00707147]
[1752328318111,31.21399,2936.3,2936.2,4.00707147]
[1752328318715,31.21399,2936.3,2936.2,6.97777147]
[1752328319111,31.21399,2936.3,2936.2,2.916]
[1752328320016,1.9611,2936.3,2936.2,7.65868147]
[1752328320205,6.45199,2936.3,2936.2,5.8867]
[1752328320410,5.7711,2936.3,2936.2,7.65868147]
[1752328320615,5.7711,2936.3,2936.2,10.10936004]
[1752328321615,6.45199,2936.3,2936.2,10.10936004]
[1752328322216,5.7711,2936.3,2936.2,10.10936004]
[1752328322712,5.7711,2936.5,2936.4,2.66286]
[1752328322908,6.45194,2936.5,2936.4,9.01823857]
[1752328323211,5.49514,2936.5,2936.4,13.31711004]
[1752328323410,6.45194,2936.5,2936.4,7.64047857]
[1752328323610,31.19394,2936.5,2936.4,1.982]
[1752328324215,6.45199,2936.3,2936.2,4.43267857]
[1752328324714,6.45199,2936.3,2936.2,2.916]
[1752328325113,6.45201,2936.2,2936.1,5.65847857]
[1752328325320,2.64203,2936.1,2936.0,2.45067857]
[1752328325517,2.64206,2936.0,2935.9,2.45067857]
[1752328325714,6.45208,2935.9,2935.8,3.07307147]
[1752328326017,6.45208,2935.9,2935.8,4.00707147]
[1752328326715,6.45208,2935.9,2935.8,6.45759563]
[1752328326914,31.18308,2935.9,2935.8,2.45052416]
[1752328327114,0.681,2935.8,2935.7,2.45052416]
[1752328327321,6.4521,2935.8,2935.7,5.36652416]
[1752328328019,2.64215,2935.6,2935.5,8.57432416]
[1752328328218,2.64215,2935.6,2935.5,9.77557]
[1752328328219,5.7711,2935.6,2935.5,9.77557]
[1752328328411,6.45215,2935.6,2935.5,11.54454917]
[1752328328616,1.9611,2935.5,2935.3,2.45004917]